bitfinex/quotes_BTCUSD_20241202
["timestamp","ask_amount","ask_price","bid_price","bid_amount"]
[1733109797668,0.0938082,97614.0,97613.0,3.901018]
[1733109798105,0.0938082,97614.0,97613.0,3.101213]
[1733109798324,0.0938082,97614.0,97613.0,3.079012]
[1733109798552,0.0938082,97614.0,97613.0,0.632756]
[1733109799488,0.0938082,97614.0,97613.0,0.634756]
[1733109800140,0.0938082,97614.0,97613.0,0.639756]
[1733109800611,0.0938082,97614.0,97613.0,0.360495]
[1733109801039,0.09590039,97614.0,97613.0,0.360495]
[1733109801248,0.0938082,97614.0,97613.0,0.360495]
[1733109801487,0.09588122,97614.0,97613.0,0.360495]
[1733109801699,0.09588122,97614.0,97613.0,0.358495]
[1733109801965,0.09588122,97614.0,97613.0,0.360495]
[1733109802187,0.0938082,97614.0,97613.0,0.355495]
[1733109802417,0.0938082,97614.0,97613.0,0.353495]
[1733109802831,0.0938082,97614.0,97613.0,0.355495]
[1733109803528,0.09589857,97614.0,97613.0,0.355495]
[1733109804186,0.09589857,97614.0,97613.0,0.358495]
[1733109804706,0.09589857,97614.0,97613.0,0.355495]
[1733109804950,0.09589857,97614.0,97613.0,0.358495]
[1733109806924,0.0938082,97614.0,97613.0,0.358495]
[1733109807371,0.09588591,97614.0,97613.0,0.358495]
[1733109808221,0.09588591,97614.0,97613.0,0.353495]
[1733109808463,0.09588591,97614.0,97613.0,0.356495]
[1733109808906,0.09588591,97614.0,97613.0,0.358495]
[1733109811148,0.00207771,97614.0,97613.0,0.434595]
[1733109811394,0.0938082,97618.0,97615.0,0.25]
[1733109811504,0.0938082,97618.0,97616.0,3.688222]
[1733109811729,0.0938082,97618.0,97617.0,3.018246]
[1733109811929,0.0938082,97618.0,97616.0,3.573658]
[1733109812624,0.0938082,97618.0,97616.0,3.312744]
[1733109812832,0.0938082,97618.0,97617.0,3.065491]
[1733109813464,0.0938082,97618.0,97617.0,3.05244]
[1733109814360,0.0938082,97618.0,97617.0,3.05344]
[1733109814797,0.0938082,97618.0,97617.0,3.05244]
[1733109815258,0.0948082,97618.0,97617.0,3.06144]
[1733109817643,0.0948082,97618.0,97617.0,2.978267]
[1733109818773,0.0948082,97618.0,97617.0,0.31632]
[1733109819437,0.0948082,97618.0,97617.0,3.004899]
[1733109819679,0.0948082,97618.0,97617.0,2.567817]
[1733109822120,0.0948082,97618.0,97617.0,2.717817]
[1733109822999,0.0938082,97618.0,97617.0,2.561817]
[1733109823442,0.0948082,97618.0,97617.0,2.564817]
[1733109823646,0.0948082,97618.0,97617.0,2.567817]
[1733109824107,0.09435184,97618.0,97617.0,2.567817]
[1733109825001,0.09435184,97618.0,97617.0,2.717817]
[1733109825474,0.001,97618.0,97617.0,2.717817]
[1733109825712,0.0008661,97629.0,97628.0,0.732359]
[1733109825964,0.0008661,97629.0,97628.0,1.14249421]
[1733109826201,0.0008661,97629.0,97628.0,1.17436167]
[1733109826419,0.0008661,97629.0,97628.0,5.55903467]
[1733109826647,0.0008661,97629.0,97628.0,5.35944467]
[1733109826860,0.0008661,97629.0,97628.0,5.36344467]
[1733109827315,0.0008661,97629.0,97628.0,5.35944467]
[1733109827769,0.0008661,97629.0,97628.0,5.36644467]
[1733109828044,0.0008661,97629.0,97628.0,5.37544467]
[1733109828266,0.0008661,97629.0,97628.0,5.36844467]
[1733109828695,0.0008661,97629.0,97628.0,5.35944467]
[1733109829134,0.0008661,97629.0,97628.0,5.60944467]
[1733109829326,0.0008661,97629.0,97628.0,5.65200717]
[1733109829530,0.0008661,97629.0,97628.0,6.04300717]
[1733109829741,0.0008661,97629.0,97628.0,1.86457233]
[1733109829952,0.0008661,97629.0,97628.0,6.89000983]
[1733109830163,0.0008661,97629.0,97628.0,6.93215193]
[1733109830596,0.0008661,97629.0,97628.0,6.92415193]
[1733109830812,0.0008661,97629.0,97628.0,6.93315193]
[1733109831254,0.0008661,97629.0,97628.0,6.89000983]
[1733109831471,0.0008661,97629.0,97628.0,5.49085383]
[1733109831697,0.0008661,97629.0,97628.0,4.61515167]
[1733109831915,0.0008661,97629.0,97628.0,4.56634483]
[1733109832829,0.0008661,97629.0,97628.0,4.57534483]
[1733109833365,0.09322064,97658.0,97657.0,0.25]
[1733109833595,0.09535896,97658.0,97657.0,2.872779]
[1733109833737,0.09322064,97658.0,97657.0,3.179979]
[1733109834571,0.09322064,97658.0,97657.0,2.716003]
[1733109834798,0.09322064,97658.0,97657.0,2.706378]
[1733109835047,0.09322064,97658.0,97657.0,2.709378]
[1733109835806,0.09322064,97658.0,97657.0,2.706378]
[1733109836013,0.09322064,97658.0,97657.0,2.709378]
[1733109836435,0.09322064,97658.0,97657.0,2.708378]
[1733109836895,0.09322064,97658.0,97657.0,2.505587]
[1733109837123,0.09322064,97658.0,97657.0,2.506587]
[1733109837552,0.09322064,97658.0,97657.0,2.022405]
[1733109837758,0.09322064,97658.0,97657.0,2.019405]
[1733109837978,0.09322064,97658.0,97657.0,2.010371]
[1733109838186,0.09322064,97658.0,97657.0,2.014371]
[1733109839272,0.09322064,97658.0,97657.0,1.375956]
[1733109839474,0.09322064,97658.0,97657.0,1.298629]
[1733109840108,0.21392064,97658.0,97657.0,0.3132]
[1733109840585,0.21606664,97658.0,97657.0,0.3132]
[1733109841927,0.24164015,97658.0,97657.0,0.3132]
[1733109843245,0.24164015,97658.0,97657.0,1.02621]
[1733109843470,0.24164015,97658.0,97657.0,0.3112]
[1733109843677,0.23949415,97658.0,97657.0,0.3132]
[1733109843885,0.14627351,97658.0,97657.0,0.3132]
[1733109844088,0.02771806,97658.0,97657.0,0.3132]
[1733109844319,0.02771806,97658.0,97657.0,0.5612]
[1733109844518,0.02771806,97658.0,97657.0,0.5632]
[1733109844729,0.02557351,97658.0,97657.0,0.5592]
[1733109844946,0.09322064,97661.0,97658.0,0.204796]
[1733109845178,0.09322064,97661.0,97659.0,3.975215]
[1733109845393,0.09322064,97661.0,97659.0,4.282405]
[1733109845621,0.09322064,97661.0,97660.0,3.845021]
[1733109845826,0.09322064,97661.0,97660.0,3.819423]
[1733109846040,0.09322064,97661.0,97660.0,2.826277]
[1733109846468,0.09322064,97661.0,97660.0,0.30719]
[1733109847162,0.09322064,97661.0,97660.0,2.467363]
[1733109847369,0.09322064,97661.0,97660.0,0.30819]
[1733109847798,0.09322064,97661.0,97660.0,2.471436]
[1733109848033,0.09322064,97661.0,97660.0,2.501358]
[1733109848959,0.09322064,97661.0,97660.0,1.823645]
[1733109849382,0.09322064,97661.0,97660.0,1.147665]
[1733109849800,0.09322064,97661.0,97660.0,0.866269]
[1733109850013,0.14022064,97661.0,97660.0,0.866269]
[1733109850249,0.22212064,97661.0,97660.0,0.31019]
[1733109850661,0.22408644,97661.0,97660.0,0.31019]
[1733109851138,0.24965995,97661.0,97660.0,0.30919]
[1733109851352,0.24965995,97661.0,97660.0,0.30719]
[1733109851502,0.24965995,97661.0,97660.0,0.30819]
[1733109851712,0.24965995,97661.0,97660.0,0.31019]
[1733109852367,0.35250516,97661.0,97660.0,0.31019]
[1733109853017,0.35250516,97661.0,97660.0,0.30719]
[1733109853210,0.35250516,97661.0,97660.0,0.31019]
[1733109853854,0.35250516,97661.0,97660.0,0.30919]
[1733109854829,0.37328308,97661.0,97660.0,0.30919]
[1733109855043,0.37328308,97661.0,97660.0,0.30719]
[1733109858342,0.37414898,97661.0,97660.0,0.30719]
[1733109872504,0.3514701,97661.0,97660.0,0.30719]
[1733109873854,0.4514701,97661.0,97660.0,0.30719]
[1733109874266,0.5514701,97661.0,97660.0,0.265986]
[1733109874455,0.5514701,97661.0,97660.0,0.20584663]
[1733109874964,0.5514701,97661.0,97660.0,0.18527163]
[1733109875191,0.5514701,97661.0,97660.0,0.16446935]
[1733109875874,0.5554701,97661.0,97660.0,0.16546935]
[1733109876081,0.5514701,97661.0,97660.0,0.16446935]
[1733109876513,0.5554701,97661.0,97660.0,0.16546935]
[1733109876737,0.5574701,97661.0,97660.0,0.16646935]
[1733109878054,0.53189659,97661.0,97660.0,0.14089584]
[1733109879537,0.43189659,97661.0,97660.0,0.14089584]
[1733109879757,0.42589659,97661.0,97660.0,0.13889584]
[1733109880237,0.43589659,97661.0,97660.0,0.13989584]
[1733109880450,0.42789659,97661.0,97660.0,0.13889584]
[1733109880655,0.43389659,97661.0,97660.0,0.13989584]
[1733109881799,0.43589659,97661.0,97660.0,0.13989584]
[1733109882698,0.42789659,97661.0,97660.0,0.14062744]
[1733109883128,0.42989659,97661.0,97660.0,0.14062744]
[1733109883572,0.43189659,97661.0,97660.0,0.14062744]
[1733109884010,0.97179659,97661.0,97660.0,0.14062744]
[1733109889273,0.96979659,97661.0,97660.0,0.14062744]
[1733109889606,0.96579659,97661.0,97660.0,0.14062744]
[1733109889807,0.96779659,97661.0,97660.0,0.14062744]
[1733109889987,0.97179659,97661.0,97660.0,0.14062744]
[1733109890237,0.96579659,97661.0,97660.0,0.14062744]
[1733109890450,0.96779659,97661.0,97660.0,0.14062744]
[1733109890657,0.97079659,97661.0,97660.0,0.14062744]
[1733109890866,0.96579659,97661.0,97660.0,0.14062744]
[1733109891266,0.96879659,97661.0,97660.0,0.14062744]
[1733109892336,0.96879659,97661.0,97660.0,0.13994134]
[1733109892757,0.96779659,97661.0,97660.0,0.13994134]
[1733109893161,0.96979659,97661.0,97660.0,0.13994134]
[1733109893484,0.97179659,97661.0,97660.0,0.13994134]
[1733109893961,0.96579659,97661.0,97660.0,0.13994134]
[1733109894167,0.96879659,97661.0,97660.0,0.13994134]
[1733109894363,0.97079659,97661.0,97660.0,0.13994134]
[1733109895794,0.96879659,97661.0,97660.0,0.13994134]
[1733109895999,0.97479659,97661.0,97660.0,0.13994134]
[1733109896215,0.96779659,97661.0,97660.0,0.13994134]
[1733109896410,0.97179659,97661.0,97660.0,0.13994134]
[1733109896651,0.96979659,97661.0,97660.0,0.13994134]
[1733109896852,0.97179659,97661.0,97660.0,0.13994134]
[1733109897313,0.96779659,97661.0,97660.0,0.13994134]
[1733109897735,0.97179659,97661.0,97660.0,0.13994134]
[1733109897935,0.96979659,97661.0,97660.0,0.13994134]
[1733109899651,0.97179659,97661.0,97660.0,0.13994134]
[1733109899878,0.96779659,97661.0,97660.0,0.13994134]
[1733109900083,0.96579659,97661.0,97660.0,0.13994134]
[1733109900336,0.96779659,97661.0,97660.0,0.13994134]
[1733109900763,0.97179659,97661.0,97660.0,0.13994134]
[1733109901405,0.96979659,97661.0,97660.0,0.13994134]
[1733109901639,0.96579659,97661.0,97660.0,0.13994134]
[1733109901885,0.96979659,97661.0,97660.0,0.13994134]
[1733109902325,0.96579659,97661.0,97660.0,0.13994134]
[1733109902565,0.96979659,97661.0,97660.0,0.13994134]
[1733109902999,0.97179659,97661.0,97660.0,0.13994134]
[1733109903491,0.96979659,97661.0,97660.0,0.13994134]
[1733109903706,0.97179659,97661.0,97660.0,0.13994134]
[1733109910133,0.17054176,97652.0,97651.0,0.00086191]
[1733109910349,0.39625329,97652.0,97651.0,0.00094091]
[1733109910559,0.39592619,97652.0,97651.0,0.00094091]
[1733109910978,0.41662967,97652.0,97651.0,0.00094091]
[1733109911642,0.41762967,97652.0,97651.0,0.00094091]
[1733109914142,0.81412473,97652.0,97651.0,0.00094091]
[1733109917271,0.81412473,97652.0,97651.0,0.00180681]
[1733109920332,0.46703682,97629.0,97628.0,0.0752]
[1733109920563,0.07054176,97620.0,97619.0,0.0808]
[1733109920994,0.0724496,97620.0,97619.0,0.2308]
[1733109921865,0.0724496,97620.0,97619.0,0.08097834]
[1733109922090,0.0724496,97620.0,97619.0,0.00017834]
[1733109922520,0.57178987,97620.0,97619.0,0.00717834]
[1733109923355,0.57178987,97620.0,97619.0,0.08887834]
[1733109923569,0.57178987,97620.0,97619.0,0.23887834]
[1733109923815,0.46894466,97620.0,97619.0,0.24287834]
[1733109924255,0.46894466,97620.0,97619.0,0.23187834]
[1733109924464,0.46994466,97620.0,97619.0,0.37030534]
[1733109924706,0.47094466,97620.0,97619.0,0.37030534]
[1733109924917,0.46994466,97620.0,97619.0,0.41780534]
[1733109925138,0.3994029,97620.0,97619.0,0.41780534]
[1733109925353,0.3994029,97620.0,97619.0,0.45472211]
[1733109925609,0.3994029,97620.0,97619.0,0.44972211]
[1733109925820,0.3984029,97620.0,97619.0,0.45572211]
[1733109926037,0.00190784,97620.0,97619.0,0.45772211]
[1733109926220,0.00190784,97620.0,97619.0,0.45172211]
[1733109926468,0.07054176,97634.0,97630.0,0.15]
[1733109926688,0.07054176,97634.0,97632.0,0.2798]
[1733109926900,0.04749885,97634.0,97633.0,3.562454]
[1733109927115,0.04749885,97634.0,97633.0,3.542009]
[1733109927553,0.04749885,97635.0,97634.0,0.15]
[1733109928221,0.04749885,97635.0,97634.0,3.869388]
[1733109928428,0.04941634,97635.0,97634.0,3.530099]
[1733109928638,0.04749885,97635.0,97634.0,3.076629]
[1733109928841,0.04749885,97635.0,97634.0,3.078629]
[1733109929514,0.04749885,97636.0,97635.0,0.354844]
[1733109929722,0.04749885,97636.0,97635.0,3.948255]
[1733109929938,0.44399391,97638.0,97636.0,0.15]
[1733109930116,0.44399391,97638.0,97637.0,4.468259]
[1733109930356,0.44399391,97638.0,97637.0,2.948016]
[1733109930566,0.44399391,97638.0,97637.0,2.432957]
[1733109930793,0.44399391,97638.0,97637.0,1.185632]
[1733109931063,0.44399391,97638.0,97637.0,1.157515]
[1733109931304,0.44593382,97638.0,97637.0,1.157515]
[1733109931535,0.44593382,97638.0,97637.0,0.749478]
[1733109931767,0.44593382,97638.0,97637.0,0.530217]
[1733109932001,0.44593382,97638.0,97637.0,0.374083]
[1733109932199,0.04943876,97638.0,97637.0,0.374083]
[1733109932480,0.04943876,97638.0,97637.0,0.478302]
[1733109933425,0.04943876,97638.0,97637.0,0.479302]
[1733109934120,0.04943876,97638.0,97637.0,0.482302]
[1733109934321,0.04943876,97638.0,97637.0,0.001]
[1733109934584,0.04943876,97638.0,97637.0,1.590396]
[1733109934877,0.04943876,97638.0,97637.0,1.674]
[1733109935112,0.04943876,97638.0,97637.0,1.673]
[1733109935353,0.04943876,97638.0,97637.0,1.674]
[1733109935840,0.15455002,97638.0,97637.0,0.154]
[1733109936087,0.15455015,97638.0,97637.0,0.004]
[1733109936550,0.15455015,97638.0,97637.0,0.003]
[1733109937020,0.15455015,97638.0,97637.0,0.001]
[1733109937259,0.23745015,97638.0,97637.0,0.003]
[1733109937520,0.23518397,97638.0,97637.0,0.001]
[1733109937996,0.23918397,97638.0,97637.0,0.001]
[1733109938232,0.40968,97637.0,97633.0,0.0008659]
[1733109938458,0.10511178,97636.0,97633.0,0.0008659]
[1733109938726,0.10703559,97636.0,97633.0,0.0008659]
[1733109939665,0.204844,97635.0,97633.0,0.0008659]
[1733109939888,0.10511178,97634.0,97633.0,0.0008659]
[1733109940106,0.10704573,97634.0,97633.0,0.0008659]
[1733109940829,0.15454458,97634.0,97633.0,0.0008659]
[1733109941302,0.55103964,97634.0,97633.0,0.0008659]
[1733109941537,0.55377307,97634.0,97633.0,0.0008659]
[1733109941769,0.54877307,97634.0,97633.0,0.0008659]
[1733109942210,0.55077307,97634.0,97633.0,0.0008659]
[1733109943550,0.54877307,97634.0,97633.0,0.0008659]
[1733109944020,0.55177307,97634.0,97633.0,0.0008659]
[1733109947721,0.54877307,97634.0,97633.0,0.0008659]
[1733109947940,0.55177307,97634.0,97633.0,0.0008659]
[1733109948784,0.54877307,97634.0,97633.0,0.0008659]
[1733109950808,0.55177307,97634.0,97633.0,0.0008659]
[1733109951011,0.54877307,97634.0,97633.0,0.0008659]
[1733109951439,0.55077307,97634.0,97633.0,0.0008659]
[1733109953473,0.54877307,97634.0,97633.0,0.0008659]
[1733109953711,0.55077307,97634.0,97633.0,0.0008659]
[1733109953940,0.54877307,97634.0,97633.0,0.0008659]
[1733109954157,0.55077307,97634.0,97633.0,0.0008659]
[1733109954637,0.59947307,97634.0,97633.0,0.0008659]
[1733109955089,0.60120567,97634.0,97633.0,0.0008659]
[1733109955333,0.67970567,97634.0,97633.0,0.0008659]
[1733109957079,0.67770567,97634.0,97633.0,0.0008659]
[1733109957282,0.68170567,97634.0,97633.0,0.0008659]
[1733109957696,0.67770567,97634.0,97633.0,0.0008659]
[1733109958162,0.68170567,97634.0,97633.0,0.0008659]
[1733109969680,0.78170567,97634.0,97633.0,0.0008659]
[1733109970140,0.68170567,97634.0,97633.0,0.0008659]
[1733109970380,0.60320567,97634.0,97633.0,0.0008659]
[1733109971059,0.59920567,97634.0,97633.0,0.0008659]
[1733109971266,0.60520567,97634.0,97633.0,0.0018659]
[1733109971669,0.59920567,97634.0,97633.0,0.0008659]
[1733109972136,0.60420567,97634.0,97633.0,0.0008659]
[1733109972330,0.59920567,97634.0,97633.0,0.0008659]
[1733109972783,0.60420567,97634.0,97633.0,0.0008659]
[1733109973454,0.60520567,97634.0,97633.0,0.0008659]
[1733109973904,0.60420567,97634.0,97633.0,0.0008659]
[1733109974146,0.59920567,97634.0,97633.0,0.0008659]
[1733109974397,0.60220567,97634.0,97633.0,0.0008659]
[1733109974854,0.60420567,97634.0,97633.0,0.0008659]
[1733109975762,0.68090567,97634.0,97633.0,0.0008659]
[1733109978637,0.67690567,97634.0,97633.0,0.0008659]
[1733109978979,0.67590567,97634.0,97633.0,0.0008659]
[1733109979422,0.77890567,97634.0,97633.0,0.0008659]
[1733109979685,0.78290567,97634.0,97633.0,0.0008659]
[1733109980968,0.77590567,97634.0,97633.0,0.0008659]
[1733109981393,0.78090567,97634.0,97633.0,0.0008659]
[1733109982231,0.78390567,97634.0,97633.0,0.0008659]
[1733109982670,0.68390567,97634.0,97633.0,0.0008659]
[1733109987888,0.60720567,97634.0,97633.0,0.0008659]
[1733109994195,0.60708352,97634.0,97633.0,0.0008659]
[1733110002493,0.59708352,97634.0,97633.0,0.0008659]
[1733110005161,0.79968352,97634.0,97633.0,0.0008659]
[1733110007370,0.25237485,97620.0,97617.0,0.0017324]
[1733110007623,0.35522006,97620.0,97617.0,0.0017324]
[1733110007804,0.3571161,97620.0,97617.0,0.0017324]
[1733110008526,0.3571161,97620.0,97619.0,0.00117834]
[1733110009153,0.3571161,97620.0,97619.0,0.00317834]
[1733110010306,0.75274526,97620.0,97619.0,0.00317834]
[1733110010524,0.75274526,97620.0,97619.0,0.00117834]
[1733110010756,0.77741898,97620.0,97619.0,0.00017834]
[1733110010966,0.77941898,97620.0,97619.0,0.00017834]
[1733110011720,0.90411898,97620.0,97619.0,0.00017834]
[1733110011931,1.02711898,97620.0,97619.0,0.00017834]
[1733110013229,1.02311898,97620.0,97619.0,0.00017834]
[1733110013473,1.02811898,97620.0,97619.0,0.00017834]
[1733110013682,1.02611898,97620.0,97619.0,3.4e-07]
[1733110014099,1.02911898,97620.0,97619.0,3.4e-07]
[1733110014550,0.24749885,97618.0,97617.0,7.4e-07]
[1733110014754,0.49774406,97618.0,97617.0,6.015e-05]
[1733110014982,0.49962661,97618.0,97617.0,6.015e-05]
[1733110015433,0.49962661,97618.0,97617.0,1.5e-07]
[1733110015617,0.39962661,97618.0,97617.0,1.5e-07]
[1733110016307,0.40562661,97618.0,97617.0,0.00100015]
[1733110017162,0.50862661,97618.0,97617.0,0.00100015]
[1733110017865,0.37538085,97617.0,97616.0,3.5e-07]
[1733110018073,0.60592606,97617.0,97616.0,3.5e-07]
[1733110018303,0.60778562,97617.0,97616.0,3.5e-07]
[1733110018941,0.14749885,97611.0,97580.0,0.0017316]
[1733110019191,0.6035054,97611.0,97580.0,0.0017316]
[1733110019414,0.17049885,97601.0,97580.0,0.0017316]
[1733110019626,0.27561147,97601.0,97580.0,0.0017316]
[1733110019834,0.27519594,97601.0,97580.0,0.0017316]
[1733110020916,0.27519594,97601.0,97600.0,0.0027308]
[1733110022477,0.27519594,97601.0,97600.0,0.0047308]
[1733110023792,0.29575975,97601.0,97600.0,0.0047308]
[1733110025081,0.39575975,97601.0,97600.0,0.0047308]
[1733110025308,0.76275711,97601.0,97600.0,0.0047308]
[1733110031387,0.53975711,97601.0,97600.0,0.0047308]
[1733110032211,0.53975711,97601.0,97600.0,0.0037308]
[1733110032616,0.54075711,97601.0,97600.0,0.0017308]
[1733110033047,0.54275711,97601.0,97600.0,0.0017308]
[1733110033304,0.53975711,97601.0,97600.0,0.0017308]
[1733110033477,0.54175711,97601.0,97600.0,0.0017308]
[1733110033703,0.54575711,97601.0,97600.0,0.0017308]
[1733110034113,0.54175711,97601.0,97600.0,0.0017308]
[1733110035996,0.54575711,97601.0,97600.0,0.0017308]
[1733110046428,0.59465711,97601.0,97600.0,0.0017308]
[1733110046818,0.67765711,97601.0,97600.0,0.0017308]
[1733110047026,0.77765711,97601.0,97600.0,0.0017308]
[1733110049319,0.77765711,97601.0,97600.0,0.00094566]
[1733110053936,0.57195436,97581.0,97580.0,0.00135391]
[1733110054140,0.57347426,97581.0,97580.0,0.00153238]
[1733110055127,0.57347426,97581.0,97580.0,0.00753238]
[1733110055128,0.57447426,97581.0,97580.0,0.00753238]
[1733110055336,0.57447426,97581.0,97580.0,0.01053238]
[1733110062811,0.36951726,97581.0,97580.0,0.01053238]
[1733110063488,0.36951726,97581.0,97580.0,0.46797238]
[1733110074372,0.3900276,97581.0,97580.0,0.46797238]
[1733110074825,0.36951726,97581.0,97580.0,0.31797238]
[1733110076844,0.41861726,97581.0,97580.0,0.31797238]
[1733110077241,0.46611611,97581.0,97580.0,0.31797238]
[1733110079720,0.65146132,97581.0,97580.0,0.31797238]
[1733110080649,0.65046132,97581.0,97580.0,0.30897238]
[1733110080871,0.65146132,97581.0,97580.0,0.31497238]
[1733110081082,0.65046132,97581.0,97580.0,0.31197238]
[1733110081563,0.65046132,97581.0,97580.0,0.30997238]
[1733110097194,0.65046132,97581.0,97580.0,0.30897238]
[1733110097446,0.65346132,97581.0,97580.0,0.30897238]
[1733110097668,0.65846132,97581.0,97580.0,0.30897238]
[1733110098096,0.65546132,97581.0,97580.0,0.30897238]
[1733110098310,0.65846132,97581.0,97580.0,0.30897238]
[1733110098528,0.65346132,97581.0,97580.0,0.30897238]
[1733110098751,0.65846132,97581.0,97580.0,0.30897238]
[1733110100510,0.75846132,97581.0,97580.0,0.30897238]
[1733110100728,0.30878703,97563.0,97562.0,0.0008659]
[1733110100957,0.41163224,97563.0,97562.0,0.0008659]
[1733110101163,0.41326274,97563.0,97562.0,0.0008659]
[1733110101806,0.41326274,97563.0,97562.0,0.3083659]
[1733110102703,0.41326274,97563.0,97562.0,0.3103659]
[1733110102940,0.41326274,97563.0,97562.0,0.3113659]
[1733110107525,0.43370596,97563.0,97562.0,0.3113659]
[1733110112460,0.45670596,97563.0,97562.0,0.3113659]
[1733110123551,0.45670596,97563.0,97562.0,0.2908539]
[1733110123789,0.45670596,97563.0,97562.0,0.24944653]
[1733110125995,0.45507546,97563.0,97562.0,0.24944653]
[1733110126271,0.45662944,97563.0,97562.0,0.24944653]
[1733110127115,0.22863444,97563.0,97562.0,0.24944653]
[1733110127531,0.17234126,97563.0,97562.0,0.24944653]
[1733110128384,0.19534126,97563.0,97562.0,0.24944653]
[1733110130407,0.25163444,97563.0,97562.0,0.24944653]
[1733110132613,0.25163444,97563.0,97562.0,0.25031303]
[1733110132788,0.25336744,97563.0,97562.0,0.25031303]
[1733110135868,0.25336744,97563.0,97562.0,0.19062185]
[1733110136070,0.25336744,97563.0,97562.0,0.15874105]
[1733110136496,0.33406744,97563.0,97562.0,0.08174105]
[1733110136725,0.33406744,97563.0,97562.0,0.04220405]
[1733110137977,0.38306744,97563.0,97562.0,0.04220405]
[1733110138206,0.04749885,97537.0,97536.0,0.196]
[1733110138430,0.205042,97541.0,97535.0,0.0825]
[1733110138431,0.07049885,97536.0,97535.0,0.0825]
[1733110138627,0.00154006,97537.0,97536.0,0.23708115]
[1733110138843,0.205042,97541.0,97536.0,0.23708115]
[1733110139518,0.205042,97541.0,97537.0,0.15]
[1733110139757,0.51293021,97541.0,97537.0,0.15]
[1733110140172,0.205046,97539.0,97536.0,0.24467644]
[1733110140406,0.20505,97537.0,97536.0,0.24467644]
[1733110140636,0.33316365,97537.0,97536.0,0.24467644]
[1733110140865,0.33089521,97537.0,97536.0,0.24467644]
[1733110141325,0.33089521,97537.0,97536.0,0.23767644]
[1733110141546,0.33089521,97537.0,97536.0,0.24267644]
[1733110142098,0.33089521,97537.0,97536.0,0.24067644]
[1733110142329,0.33089521,97537.0,97536.0,0.24167644]
[1733110142565,0.33089521,97537.0,97536.0,0.23867644]
[1733110143058,0.33089521,97537.0,97536.0,0.23767644]
[1733110143549,0.33089521,97537.0,97536.0,0.23867644]
[1733110143787,0.33089521,97537.0,97536.0,0.23781325]
[1733110144743,0.38871347,97537.0,97536.0,0.19880425]
[1733110144971,0.38871347,97537.0,97536.0,0.19780425]
[1733110145431,0.38871347,97537.0,97536.0,0.19867075]
[1733110145945,0.39071347,97537.0,97536.0,0.19867075]
[1733110146194,0.38871347,97537.0,97536.0,0.19867075]
[1733110146430,0.39371347,97537.0,97536.0,0.19867075]
[1733110147635,0.39271347,97537.0,97536.0,0.19867075]
[1733110148087,0.39571347,97537.0,97536.0,0.19867075]
[1733110154417,0.19066347,97537.0,97536.0,0.19867075]
[1733110154858,0.19293189,97537.0,97536.0,0.19867075]
[1733110155308,0.18593189,97537.0,97536.0,0.19867075]
[1733110155501,0.18366347,97537.0,97536.0,0.19867075]
[1733110155755,0.18593189,97537.0,97536.0,0.19867075]
[1733110156901,0.18693189,97537.0,97536.0,0.19867075]
[1733110157141,0.18866529,97537.0,97536.0,0.19867075]
[1733110158872,0.18639687,97537.0,97536.0,0.19867075]
[1733110159796,0.06055166,97537.0,97536.0,0.19867075]
[1733110160033,0.00425848,97537.0,97536.0,0.32577075]
[1733110160270,0.00425848,97537.0,97536.0,0.47577075]
[1733110160503,0.0027334,97537.0,97536.0,0.47577075]
[1733110160670,0.0027334,97537.0,97536.0,2.85396075]
[1733110161371,0.0257334,97537.0,97536.0,2.85396075]
[1733110161607,0.0247334,97537.0,97536.0,2.85596075]
[1733110162069,0.0247334,97537.0,97536.0,2.85996075]
[1733110162304,0.0247334,97537.0,97536.0,2.85596075]
[1733110162533,0.0247334,97537.0,97536.0,2.85996075]
[1733110165839,0.02053753,97538.0,97536.0,2.85996075]
[1733110166322,0.02053753,97538.0,97537.0,2.67157]
[1733110167762,0.02053753,97538.0,97537.0,2.67357]
[1733110168171,0.02053753,97538.0,97537.0,2.46852]
[1733110168605,0.02053753,97538.0,97537.0,2.32551]
[1733110169150,0.02053753,97538.0,97537.0,2.32851]
[1733110172618,0.10311344,97550.0,97537.0,2.32851]
[1733110172834,0.10311344,97590.0,97562.0,0.354997]
[1733110173044,0.10311344,97590.0,97562.0,5.155876]
[1733110173258,0.0201459,97576.0,97562.0,3.901244]
[1733110173702,0.10311344,97590.0,97562.0,3.82647021]
[1733110173954,0.10311344,97590.0,97562.0,3.95267021]
[1733110174189,0.02235826,97578.0,97562.0,3.34289621]
[1733110174422,0.02235826,97578.0,97562.0,3.37657256]
[1733110174635,0.10311344,97572.0,97562.0,0.41787]
[1733110174848,0.024733,97563.0,97562.0,0.41787]
[1733110175273,0.024733,97563.0,97562.0,0.42587]
[1733110175484,0.025733,97563.0,97562.0,0.43487]
[1733110175707,0.025733,97563.0,97562.0,0.42687]
[1733110175930,0.024733,97563.0,97562.0,0.41787]
[1733110176181,0.04486654,97563.0,97562.0,0.42887]
[1733110176418,0.04486654,97563.0,97562.0,0.42387]
[1733110176674,0.04486654,97563.0,97562.0,0.41787]
[1733110176905,0.04486654,97563.0,97562.0,0.42487]
[1733110177041,0.04486654,97563.0,97562.0,0.41987]
[1733110177693,0.04613922,97563.0,97562.0,0.41987]
[1733110178117,0.04613922,97563.0,97562.0,0.41787]
[1733110178354,0.04486654,97563.0,97562.0,0.41787]
[1733110178569,0.04486654,97563.0,97562.0,0.41987]
[1733110178728,0.04486654,97563.0,97562.0,0.42487]
[1733110178940,0.04611931,97563.0,97562.0,0.41787]
[1733110179141,0.04611931,97563.0,97562.0,0.41987]
[1733110179286,0.04611931,97563.0,97562.0,0.42387]
[1733110179504,0.04611931,97563.0,97562.0,0.41987]
[1733110179735,0.04611931,97563.0,97562.0,0.41787]
[1733110179970,0.04611931,97563.0,97562.0,0.42387]
[1733110181371,0.14896452,97563.0,97562.0,0.41451382]
[1733110181585,0.14896452,97563.0,97562.0,0.41051382]
[1733110181716,0.14896452,97563.0,97562.0,0.40851382]
[1733110181925,0.14896452,97563.0,97562.0,0.41251382]
[1733110182315,0.14896452,97563.0,97562.0,0.41151382]
[1733110182814,0.14896452,97563.0,97562.0,0.40951382]
[1733110183030,0.14896452,97563.0,97562.0,0.41151382]
[1733110184057,0.14577664,97563.0,97562.0,0.41151382]
[1733110184494,0.68567664,97563.0,97562.0,0.41151382]
[1733110184705,0.68567664,97563.0,97562.0,0.40851382]
[1733110184910,0.68567664,97563.0,97562.0,0.40951382]
[1733110185123,0.68567664,97563.0,97562.0,0.41151382]
[1733110186223,0.68567664,97563.0,97562.0,0.41051382]
[1733110186425,0.68567664,97563.0,97562.0,0.40851382]
[1733110186629,0.68567664,97563.0,97562.0,0.40951382]
[1733110188473,0.68567664,97563.0,97562.0,0.40851382]
[1733110190264,0.81327664,97563.0,97562.0,0.40851382]
[1733110193748,0.81327664,97563.0,97562.0,0.40938032]
[1733110193981,0.81500964,97563.0,97562.0,0.40938032]